bitfinex/quotes_BTCUSD_20220218
["timestamp","ask_amount","ask_price","bid_price","bid_amount"]
[1645182390189,1.397,40668.0,40661.0,0.00036781]
[1645182390387,0.7,40662.0,40661.0,0.00036781]
[1645182390585,1.081283,40662.0,40661.0,0.00036781]
[1645182390781,0.8991,40662.0,40661.0,0.00036781]
[1645182390983,0.8,40662.0,40661.0,0.00036781]
[1645182391181,0.8,40662.0,40658.0,0.00028912]
[1645182391383,0.071242,40663.0,40656.0,0.00028912]
[1645182391582,0.071242,40663.0,40657.0,0.33264305]
[1645182391781,0.071242,40663.0,40657.0,0.00074917]
[1645182392181,0.061542,40663.0,40657.0,0.00074917]
[1645182392629,0.061542,40663.0,40658.0,0.00012516]
[1645182392833,0.061542,40663.0,40658.0,0.00041428]
[1645182393026,0.061542,40663.0,40658.0,0.00012516]
[1645182393230,0.061542,40663.0,40658.0,0.00041428]
[1645182393430,0.061542,40663.0,40659.0,0.00011325]
[1645182394029,0.061542,40663.0,40659.0,0.00040237]
[1645182394228,0.061542,40663.0,40659.0,0.00011325]
[1645182394430,0.061542,40663.0,40659.0,0.00040237]
[1645182394732,0.061542,40663.0,40660.0,0.249274]
[1645182394929,0.061542,40663.0,40660.0,0.24956312]
[1645182395631,0.061542,40663.0,40662.0,0.20257821]
[1645182396076,0.061542,40663.0,40660.0,0.24028912]
[1645182396377,0.061542,40663.0,40660.0,0.24067769]
[1645182396978,0.061542,40663.0,40662.0,0.23354289]
[1645182398180,0.061542,40663.0,40662.0,0.23365549]
[1645182398579,0.061542,40663.0,40662.0,0.53365549]
[1645182398785,0.061542,40663.0,40662.0,0.56583849]
[1645182398983,0.061542,40663.0,40662.0,0.23365549]
[1645182399839,0.061542,40663.0,40662.0,0.86583849]
[1645182400833,0.061542,40663.0,40662.0,0.56583849]
[1645182401735,0.00038871,40666.0,40662.0,0.56583849]
[1645182401736,0.06189971,40666.0,40663.0,0.332183]
[1645182402132,0.061511,40666.0,40663.0,0.332183]
[1645182403983,0.061511,40666.0,40663.0,0.334183]
[1645182405186,0.061511,40666.0,40663.0,0.332183]
[1645182405789,0.061511,40666.0,40663.0,0.334183]
[1645182406387,0.0003887,40667.0,40663.0,0.334183]
[1645182406885,0.061511,40669.0,40663.0,0.002]
[1645182407084,0.061511,40669.0,40663.0,0.06351093]
[1645182407336,0.061511,40669.0,40663.0,0.002]
[1645182407530,0.061511,40669.0,40664.0,0.332183]
[1645182407830,0.184551,40667.0,40663.0,0.332183]
[1645182408335,0.1234217,40667.0,40665.0,0.00011195]
[1645182408731,0.1234217,40667.0,40666.0,0.332183]
[1645182409332,0.123033,40667.0,40666.0,0.332183]
[1645182410433,0.123033,40667.0,40652.0,0.05]
[1645182410434,0.37337455,40667.0,40652.0,0.05]
[1645182410645,0.37337455,40667.0,40662.0,0.00038876]
[1645182410646,0.632183,40666.0,40662.0,0.00038876]
[1645182410846,0.061524,40664.0,40662.0,0.00038876]
[1645182411088,0.478902,40663.0,40662.0,0.00038876]
[1645182411287,0.607772,40663.0,40662.0,0.00038876]
[1645182411486,0.607772,40663.0,40653.0,0.3314511]
[1645182411487,0.575589,40663.0,40653.0,0.3314511]
[1645182411687,0.393725,40662.0,40653.0,0.3314511]
[1645182411887,0.30858937,40661.0,40653.0,0.3314511]
[1645182412086,0.393724,40660.0,40653.0,0.3314511]
[1645182412288,0.442824,40660.0,40653.0,0.3314511]
[1645182412487,0.542824,40660.0,40653.0,0.3314511]
[1645182412689,0.542824,40660.0,40650.0,0.22898562]
[1645182412889,0.210641,40660.0,40650.0,0.22898562]
[1645182413590,0.110641,40660.0,40650.0,0.22898562]
[1645182413789,0.110641,40660.0,40654.0,0.32268247]
[1645182414390,0.110641,40660.0,40656.0,0.00040636]
[1645182414836,0.222177,40660.0,40656.0,0.00040636]
[1645182415829,0.223177,40660.0,40656.0,0.00040636]
[1645182416431,0.3,40659.0,40650.0,0.0020366]
[1645182416635,0.3,40659.0,40648.0,0.19302067]
[1645182416636,0.3,40659.0,40648.0,0.17121487]
[1645182416834,0.061539,40655.0,40648.0,0.17121487]
[1645182417134,0.061539,40655.0,40649.0,0.332183]
[1645182417333,0.24104842,40654.0,40648.0,0.332183]
[1645182417733,0.24104842,40654.0,40648.0,0.327183]
[1645182417934,0.06154,40653.0,40648.0,0.332425]
[1645182418133,0.123082,40653.0,40648.0,0.332425]
[1645182418787,0.06154,40653.0,40648.0,0.332425]
[1645182419086,0.06154,40653.0,40649.0,0.22643888]
[1645182419087,0.061537,40652.0,40649.0,0.22643888]
[1645182419288,0.06154,40653.0,40652.0,0.12307399]
[1645182419289,0.123078,40653.0,40652.0,0.12307399]
[1645182419987,0.122738,40653.0,40652.0,0.12307399]
[1645182420786,0.118928,40653.0,40652.0,0.12307399]
[1645182421193,0.391395,40653.0,40652.0,0.12307399]
[1645182421393,0.184659,40652.0,40648.0,0.24]
[1645182421597,0.172215,40651.0,40648.0,0.24]
[1645182421791,0.332425,40650.0,40645.0,0.0011]
[1645182421989,0.110657,40649.0,40645.0,0.0011]
[1645182422190,0.21628166,40646.0,40645.0,0.0011]
[1645182422437,0.26538166,40646.0,40644.0,0.0012341]
[1645182422742,0.45847166,40646.0,40643.0,0.018158]
[1645182422935,0.55847166,40646.0,40643.0,0.018158]
[1645182423536,0.55708166,40646.0,40643.0,0.018158]
[1645182423935,0.34219,40646.0,40643.0,0.018158]
[1645182424135,0.27221,40646.0,40643.0,0.018158]
[1645182424336,0.0491,40646.0,40643.0,0.018158]
[1645182424539,0.30099117,40646.0,40643.0,0.018158]
[1645182424738,0.0491,40646.0,40643.0,0.018158]
[1645182424937,0.0491,40646.0,40643.0,0.008158]
[1645182424938,0.14783,40646.0,40643.0,0.008158]
[1645182425136,0.209381,40646.0,40643.0,0.008158]
[1645182425738,0.209381,40646.0,40643.0,0.00844452]
[1645182426191,0.109381,40646.0,40643.0,0.00844452]
[1645182426395,0.109381,40646.0,40643.0,0.00344452]
[1645182429394,0.409381,40646.0,40643.0,0.00344452]
[1645182429837,0.209381,40646.0,40643.0,0.00344452]
[1645182430330,0.209381,40646.0,40642.0,0.00095007]
[1645182431032,0.109381,40646.0,40642.0,0.00095007]
[1645182431231,0.109381,40646.0,40642.0,0.19665438]
[1645182432034,0.109381,40646.0,40642.0,0.19624883]
[1645182432234,0.109381,40646.0,40642.0,0.21665438]
[1645182433339,0.109381,40646.0,40642.0,0.21624883]
[1645182433581,0.109381,40646.0,40642.0,0.21665438]
[1645182433784,0.109381,40646.0,40642.0,0.21765438]
[1645182433986,0.061551,40646.0,40643.0,0.26050324]
[1645182434188,0.061555,40647.0,40643.0,0.26050324]
[1645182434384,0.061555,40647.0,40643.0,0.25550324]
[1645182434787,0.061555,40647.0,40643.0,0.25590879]
[1645182435684,0.061555,40647.0,40643.0,0.25550324]
[1645182435884,0.061555,40647.0,40644.0,0.332468]
[1645182436185,0.061555,40647.0,40644.0,0.382468]
[1645182437084,0.061555,40647.0,40644.0,0.60679359]
[1645182438536,0.0095,40656.0,40644.0,0.60679359]
[1645182438736,0.0095,40656.0,40650.0,0.28218596]
[1645182438939,0.0095,40656.0,40651.0,0.627468]
[1645182439138,0.06153,40655.0,40651.0,0.627468]
[1645182439538,0.0096,40668.0,40651.0,0.05040552]
[1645182439738,0.00040539,40665.0,40664.0,0.20323397]
[1645182440140,0.00040539,40665.0,40658.0,0.23596612]
[1645182440338,0.00040539,40665.0,40659.0,0.332369]
[1645182440540,0.246084,40666.0,40658.0,0.23596612]
[1645182440737,0.00040544,40665.0,40659.0,0.33277449]
[1645182440936,0.00040544,40665.0,40661.0,0.28524466]
[1645182441183,0.00040544,40665.0,40660.0,0.24758534]
[1645182441387,0.00040544,40665.0,40662.0,0.332369]
[1645182441782,0.18456,40666.0,40662.0,0.332369]
[1645182441985,0.18496545,40666.0,40660.0,0.29799084]
[1645182442182,0.18496545,40666.0,40661.0,0.33158971]
[1645182442785,0.18496545,40666.0,40655.0,0.001]
[1645182442787,0.3,40665.0,40655.0,0.001]
[1645182442989,0.3,40665.0,40642.0,0.00054452]
[1645182442990,0.6142,40659.0,40642.0,0.00054452]
[1645182443186,0.7,40649.0,40642.0,0.00054452]
[1645182443389,0.7,40649.0,40637.0,0.002]
[1645182443390,0.2418209,40648.0,40633.0,0.1134]
[1645182443590,0.2909209,40648.0,40634.0,0.332369]
[1645182443787,0.22013161,40646.0,40642.0,0.3517554]
[1645182443984,0.22013161,40646.0,40640.0,0.332369]
[1645182444289,0.22013161,40646.0,40639.0,0.22009608]
[1645182444686,0.223122,40647.0,40640.0,0.332369]
[1645182444935,0.272222,40647.0,40640.0,0.332369]
[1645182445134,0.172206,40647.0,40640.0,0.332369]
[1645182445340,0.061561,40647.0,40640.0,0.332369]
[1645182445536,0.061533,40650.0,40643.0,0.18813621]
[1645182445737,0.123066,40654.0,40647.0,0.332369]
[1645182445937,0.123066,40654.0,40650.0,0.26565251]
[1645182446136,0.123066,40654.0,40647.0,0.332369]
[1645182446137,0.123066,40654.0,40648.0,0.332369]
[1645182446338,0.123066,40654.0,40642.0,0.332369]
[1645182446737,0.254998,40651.0,40648.0,0.00013911]
[1645182446940,0.316535,40651.0,40650.0,0.332369]
[1645182447140,0.4,40658.0,40650.0,0.25682437]
[1645182447336,0.123066,40659.0,40649.0,0.00028364]
[1645182447536,0.123066,40659.0,40648.0,0.00013911]
[1645182447736,0.123066,40659.0,40645.0,0.00028364]
[1645182447939,0.123066,40659.0,40649.0,0.001]
[1645182447940,0.00040594,40656.0,40649.0,0.001]
[1645182448137,0.061537,40654.0,40653.0,0.19814569]
[1645182448339,0.061537,40654.0,40653.0,0.53056069]
[1645182448591,0.00040594,40656.0,40654.0,0.332415]
[1645182448791,0.00040594,40656.0,40654.0,0.382415]
[1645182448990,0.071329,40662.0,40654.0,0.382415]
[1645182449188,0.071329,40662.0,40653.0,0.24842933]
[1645182449389,0.071329,40662.0,40653.0,0.24814569]
[1645182449590,0.123063,40656.0,40653.0,0.24814569]
[1645182449989,0.123063,40656.0,40653.0,0.24914569]
[1645182450490,0.061532,40657.0,40654.0,0.332415]
[1645182450692,0.061529,40656.0,40653.0,0.24942933]
[1645182450890,0.061529,40656.0,40653.0,0.24914569]
[1645182451091,0.061529,40656.0,40653.0,0.001]
[1645182451891,0.061529,40656.0,40652.0,0.00028364]
[1645182452092,0.12307,40654.0,40648.0,0.18677204]
[1645182452342,0.32541131,40655.0,40649.0,0.332415]
[1645182452537,0.061534,40655.0,40649.0,0.332415]
[1645182452737,0.00040561,40653.0,40649.0,0.33269864]
[1645182452939,0.00040561,40653.0,40638.0,0.1249]
[1645182452940,0.7,40650.0,40638.0,0.1249]
[1645182453140,0.0588,40649.0,40640.0,0.332415]
[1645182453437,0.061559,40647.0,40640.0,0.332415]
[1645182453636,0.0491,40646.0,40638.0,0.1249]
[1645182453836,0.21657941,40645.0,40638.0,0.1249]
[1645182454136,0.26567941,40645.0,40636.0,0.27859873]
[1645182454335,0.24567941,40645.0,40636.0,0.27859873]
[1645182454537,0.061562,40644.0,40636.0,0.27859873]
[1645182454736,0.061562,40644.0,40636.0,0.32859873]
[1645182455043,0.123125,40644.0,40636.0,0.32859873]
[1645182455336,0.184688,40643.0,40636.0,0.27859873]
[1645182455537,0.233788,40643.0,40636.0,0.27859873]
[1645182456201,0.061563,40642.0,40636.0,0.27859873]
[1645182456401,0.110663,40641.0,40640.0,0.332415]
[1645182456599,0.172226,40641.0,40639.0,0.00055051]
[1645182457002,0.3,40640.0,40639.0,0.00055051]
[1645182457203,0.059,40640.0,40639.0,0.00055051]
[1645182457401,0.059,40640.0,40639.0,0.000412]
[1645182459102,0.059,40640.0,40639.0,0.20183569]
[1645182459302,0.059,40640.0,40639.0,0.000412]
[1645182463442,0.0099,40640.0,40639.0,0.000412]
[1645182464088,0.061563,40641.0,40639.0,0.000412]
[1645182465293,0.061563,40641.0,40640.0,0.332415]
[1645182465490,0.051563,40641.0,40640.0,0.332415]
[1645182465690,0.051563,40641.0,40639.0,0.000412]
[1645182467093,0.071563,40641.0,40639.0,0.332827]
[1645182467350,0.071563,40641.0,40638.0,0.00040569]
[1645182467351,1.46982519,40640.0,40638.0,0.00040569]
[1645182467541,1.46982519,40640.0,40632.0,0.00162301]
[1645182467542,0.3,40639.0,40632.0,0.00162301]
[1645182467740,0.7,40633.0,40632.0,0.00162301]
[1645182467944,0.96593434,40633.0,40632.0,0.00162301]
[1645182468138,0.96593434,40633.0,40630.0,0.0020393]
[1645182468342,0.96593434,40633.0,40622.0,0.0031]
[1645182468343,1.31656771,40633.0,40626.0,0.0003393]
[1645182468742,1.37815171,40633.0,40626.0,0.00062022]
[1645182468940,0.061589,40632.0,40626.0,0.0003393]
[1645182469140,0.061589,40632.0,40626.0,0.00062022]
[1645182469342,0.6142,40628.0,40622.0,0.0031]
[1645182469542,0.7,40624.0,40622.0,0.0031]
[1645182469940,0.8,40624.0,40622.0,0.0031]
[1645182470240,0.8,40624.0,40617.0,0.001]
[1645182470447,0.0491,40623.0,40617.0,0.001]
[1645182470642,0.2398346,40617.0,40615.0,0.0011]
[1645182470840,0.0585,40616.0,40615.0,0.0011]
[1645182471088,0.2398346,40617.0,40616.0,0.117]
[1645182471287,0.9398346,40617.0,40616.0,0.117]
[1645182471489,0.2398346,40617.0,40616.0,0.117]
[1645182471690,0.3398346,40617.0,40616.0,0.117]
[1645182472086,1.0398346,40617.0,40616.0,0.117]
[1645182472287,0.2398346,40617.0,40616.0,0.117]
[1645182473288,0.2398346,40617.0,40616.0,0.11710862]
[1645182474490,0.2889346,40617.0,40616.0,0.11710862]
[1645182477540,0.3089346,40617.0,40616.0,0.11710862]
[1645182477840,0.4089346,40617.0,40616.0,0.11710862]
[1645182478443,1.14261357,40617.0,40614.0,0.00040461]
[1645182478702,1.14261357,40617.0,40611.0,0.00154951]
[1645182478703,1.344522,40614.0,40611.0,0.00154951]
[1645182478898,1.01618962,40612.0,40611.0,0.00154951]
[1645182479098,1.01618962,40612.0,40608.0,0.0011]
[1645182479099,2.44808962,40612.0,40608.0,0.0011]
[1645182479301,2.68069562,40609.0,40608.0,0.0011]
[1645182479497,1.629494,40608.0,40600.0,15.00312727]
[1645182479698,1.629494,40608.0,40600.0,15.00112727]
[1645182479699,2.23091197,40607.0,40600.0,15.00112727]
[1645182479898,0.761633,40601.0,40600.0,15.00112727]
[1645182480099,0.810733,40601.0,40600.0,15.00112727]
[1645182480298,1.143227,40601.0,40600.0,15.00112727]
[1645182480605,2.06324715,40601.0,40600.0,14.72682153]
[1645182480808,2.06324715,40601.0,40600.0,13.98707553]
[1645182480809,2.16324715,40601.0,40600.0,13.98707553]
[1645182481109,2.16324715,40601.0,40600.0,11.02586199]
[1645182481110,3.61024715,40601.0,40600.0,11.02586199]
[1645182481300,4.35530745,40601.0,40600.0,8.44911327]
[1645182481501,4.35530745,40601.0,40600.0,8.43687327]
[1645182481707,4.35530745,40601.0,40600.0,7.53989727]
[1645182481708,4.19915715,40601.0,40600.0,7.53989727]
[1645182481900,3.96283262,40601.0,40600.0,7.53989727]
[1645182482545,4.06283262,40601.0,40600.0,7.16499627]
[1645182482744,4.01283262,40601.0,40600.0,7.16499627]
[1645182482943,3.96283262,40601.0,40600.0,7.16399627]
[1645182483147,4.11283262,40601.0,40600.0,6.64506504]
[1645182483348,4.11283262,40601.0,40600.0,6.27413704]
[1645182483545,4.11283262,40601.0,40600.0,5.90220404]
[1645182483743,4.11283262,40601.0,40600.0,5.89920404]
[1645182483943,4.11283262,40601.0,40600.0,5.52427204]
[1645182484146,4.11283262,40601.0,40600.0,5.12034304]
[1645182484445,4.11283262,40601.0,40600.0,4.73539604]
[1645182484644,4.21283262,40601.0,40600.0,4.36272697]
[1645182484847,4.21283262,40601.0,40600.0,4.35572697]
[1645182485045,4.21283262,40601.0,40600.0,3.97978497]
[1645182485246,4.21283262,40601.0,40600.0,3.60285297]
[1645182485646,4.21283262,40601.0,40600.0,3.59785297]
[1645182485851,4.21283262,40601.0,40600.0,3.22790897]
[1645182486091,4.55122399,40601.0,40600.0,3.22790897]
[1645182486290,4.21283262,40601.0,40600.0,2.85796397]
[1645182486493,5.34514552,40601.0,40600.0,2.59660397]
[1645182486692,0.39845666,40600.0,40599.0,0.02899916]
[1645182486893,1.297,40599.0,40584.0,0.001036]
[1645182487097,1.297,40599.0,40574.0,0.29592185]
[1645182487098,0.89311842,40585.0,40575.0,0.29011668]
[1645182487293,0.89311842,40585.0,40575.0,0.26075368]
[1645182487294,0.40008469,40584.0,40575.0,0.26075368]
[1645182487492,0.7,40577.0,40576.0,0.2204081]
[1645182487692,1.081594,40577.0,40576.0,0.2204081]
[1645182487893,1.181594,40577.0,40576.0,0.2204081]
[1645182488091,1.081594,40577.0,40576.0,0.2204081]
[1645182488294,0.047522,40576.0,40573.0,1.15264824]
[1645182488499,0.06949562,40574.0,40573.0,0.15552784]
[1645182488694,0.11859562,40574.0,40573.0,0.15552784]
[1645182489292,0.11959562,40574.0,40573.0,0.34316231]
[1645182490645,0.11959562,40574.0,40571.0,0.00040354]
[1645182490646,0.45108962,40574.0,40571.0,0.00040354]
[1645182490856,0.45108962,40574.0,40558.0,0.002362]
[1645182490857,1.82266742,40572.0,40541.0,0.3888]
[1645182491048,1.82266742,40572.0,40549.0,0.0012832]
[1645182491049,0.6142,40554.0,40549.0,0.0012832]
[1645182491247,0.7,40550.0,40549.0,0.0012832]
[1645182491443,1.0880718,40550.0,40549.0,0.0012832]
[1645182491643,3.0107626,40550.0,40539.0,0.26490566]
[1645182491842,0.0064778,40545.0,40544.0,0.0078796]
[1645182492046,0.75257461,40545.0,40544.0,0.0078796]
[1645182492444,0.45058499,40545.0,40544.0,0.0078796]
[1645182492745,0.12109,40545.0,40544.0,0.63002747]
[1645182492943,0.0491,40545.0,40544.0,0.0078796]
[1645182493142,0.7,40551.0,40544.0,0.1014018]
[1645182493343,0.0064778,40545.0,40539.0,0.26490566]
[1645182493603,0.332494,40550.0,40539.0,0.26490566]
[1645182493604,0.7,40540.0,40539.0,0.26490566]
[1645182493795,0.7,40540.0,40539.0,0.53920379]
[1645182493995,0.7,40540.0,40539.0,0.26490566]
[1645182494798,0.761721,40544.0,40539.0,0.26490566]
[1645182495199,0.332494,40543.0,40539.0,0.26490566]
[1645182495799,0.761721,40544.0,40539.0,0.26490566]
[1645182496000,0.432494,40543.0,40539.0,0.00040245]
[1645182496205,0.1,40543.0,40539.0,0.00040245]
[1645182496401,0.123472,40540.0,40539.0,0.00040245]
[1645182496602,0.06949562,40540.0,40539.0,0.00040245]
[1645182496801,0.332494,40540.0,40539.0,0.00040245]
[1645182497001,0.0253,40541.0,40539.0,0.56961087]
[1645182497344,0.0253,40541.0,40539.0,0.4534677]
[1645182497539,0.332494,40540.0,40539.0,0.4534677]
[1645182497738,0.332494,40540.0,40539.0,0.20878328]
[1645182497937,0.1,40540.0,40539.0,0.20878328]
[1645182498139,0.05,40544.0,40539.0,0.20878328]
[1645182498340,0.15,40544.0,40539.0,0.20889513]
[1645182498745,0.05,40544.0,40540.0,0.22795727]
[1645182498940,0.05,40544.0,40539.0,0.20889513]
[1645182498941,0.332494,40543.0,40539.0,0.20889513]
[1645182499143,0.332494,40543.0,40541.0,0.28314686]
[1645182499745,0.0491,40543.0,40542.0,0.332494]
[1645182499947,0.001,40544.0,40542.0,0.4260162]
[1645182500244,0.001,40544.0,40543.0,0.332494]
[1645182500646,0.001,40544.0,40543.0,0.19482509]
[1645182500848,0.001,40544.0,40543.0,0.67084129]
[1645182501104,0.0097,40553.0,40549.0,0.002]
[1645182501311,0.0097,40553.0,40550.0,0.55311572]
[1645182501602,0.05,40554.0,40550.0,0.55311572]
[1645182501803,0.05,40554.0,40551.0,0.29587392]
[1645182502002,0.061687,40565.0,40551.0,0.57112986]
[1645182502204,0.0091,40566.0,40560.0,0.0925222]
[1645182502403,0.0091,40566.0,40564.0,0.2694599]
[1645182502604,0.00040192,40567.0,40561.0,0.23080775]
[1645182502803,0.00040192,40567.0,40562.0,0.30183835]
[1645182503008,0.06443343,40582.0,40566.0,0.0925222]
[1645182503009,0.061667,40579.0,40566.0,0.0925222]
[1645182503205,0.26731251,40577.0,40563.0,0.26437194]
[1645182503405,0.000402,40567.0,40563.0,0.00027441]
[1645182503606,0.000402,40567.0,40566.0,0.0925222]
[1645182504305,0.7,40576.0,40566.0,0.1425222]
[1645182504511,0.000402,40569.0,40566.0,0.21638495]
[1645182504705,0.332494,40574.0,40567.0,0.0925222]
[1645182504937,0.7,40576.0,40566.0,0.26638495]
[1645182505137,0.7,40576.0,40569.0,0.0925222]
[1645182505339,0.332494,40575.0,40569.0,0.0925222]
[1645182505538,0.332494,40574.0,40567.0,0.00027441]
[1645182505738,0.332494,40578.0,40566.0,0.26638495]
[1645182505939,0.047522,40574.0,40566.0,0.21638495]
[1645182506239,0.30055864,40577.0,40566.0,0.21638495]
[1645182506442,0.047522,40576.0,40566.0,0.26638495]
[1645182506637,0.332494,40575.0,40566.0,0.26638495]
[1645182506836,0.061673,40574.0,40566.0,0.26638495]
[1645182507038,0.40055864,40577.0,40571.0,0.27388066]
[1645182507237,0.332494,40575.0,40567.0,0.00027441]
[1645182507436,0.1,40577.0,40566.0,0.26665936]
[1645182507637,0.1,40577.0,40566.0,0.26638495]
[1645182507838,0.332494,40578.0,40566.0,0.26638495]
[1645182508039,0.061668,40577.0,40566.0,0.26638495]
[1645182508240,0.00040199,40574.0,40568.0,0.00010551]
[1645182508886,0.332494,40573.0,40568.0,0.00010551]
[1645182509395,0.332494,40573.0,40556.0,0.00149073]
[1645182509396,0.0074778,40569.0,40556.0,0.00149073]
[1645182509591,0.0074778,40569.0,40549.0,0.002]
[1645182509592,0.75,40556.0,40549.0,0.002]
[1645182509790,0.7,40550.0,40549.0,0.002]
[1645182509990,1.297,40549.0,40542.0,0.00559218]
[1645182510189,0.7,40543.0,40537.0,0.00142384]
[1645182510390,0.33496295,40539.0,40538.0,0.31895167]
[1645182510590,0.38406295,40539.0,40538.0,0.31895167]
[1645182510787,0.38406295,40539.0,40537.0,0.00142384]
[1645182510788,0.53406295,40539.0,40537.0,0.00142384]
[1645182510989,0.04999095,40538.0,40537.0,0.00142384]
[1645182511289,0.16081995,40538.0,40537.0,0.00142384]
[1645182511597,0.16081995,40538.0,40537.0,0.56908879]
[1645182511598,0.18032462,40538.0,40537.0,0.56908879]
[1645182511797,0.110829,40538.0,40537.0,0.86642897]
[1645182512191,0.110829,40538.0,40537.0,0.91642897]
[1645182512438,0.110829,40538.0,40537.0,1.16001468]
[1645182512639,0.061729,40538.0,40537.0,1.16001468]
[1645182512843,0.061713,40541.0,40537.0,1.26001468]
[1645182513038,0.061713,40541.0,40540.0,0.1]
[1645182513238,0.061713,40541.0,40540.0,0.482494]
[1645182513637,0.0491,40545.0,40541.0,0.06171]
[1645182513842,0.110804,40552.0,40545.0,0.332494]
[1645182514043,0.110804,40552.0,40545.0,0.1]
[1645182514044,0.061704,40552.0,40545.0,0.1]
[1645182514244,0.071104,40555.0,40545.0,0.15]
[1645182514639,0.0094,40555.0,40545.0,0.15]
[1645182514840,0.061705,40548.0,40547.0,0.35304599]
[1645182515641,0.011705,40548.0,40547.0,0.35304599]
[1645182516489,0.061702,40551.0,40547.0,0.68553999]
[1645182516686,0.061702,40551.0,40547.0,0.35304599]
[1645182518290,0.061702,40551.0,40549.0,8.442e-05]
[1645182519592,1.072334,40550.0,40549.0,8.442e-05]
[1645182519844,0.73984,40550.0,40549.0,8.442e-05]
[1645182521542,0.73984,40550.0,40549.0,2.442e-05]
[1645182522640,0.73984,40550.0,40549.0,0.0026945]
[1645182523440,0.73984,40550.0,40549.0,0.00278921]
[1645182524088,1.13984,40550.0,40549.0,0.00278921]
[1645182524292,1.18894,40550.0,40549.0,0.00278921]
[1645182524611,1.18894,40550.0,40532.0,0.02312413]
[1645182524612,0.061736,40544.0,40521.0,0.36593827]
[1645182524795,0.7,40527.0,40521.0,0.36593827]
[1645182524990,0.7,40527.0,40522.0,0.332494]
[1645182524991,0.0826,40526.0,40522.0,0.332494]
[1645182525191,0.312784,40525.0,40522.0,0.00027177]
[1645182525391,0.0491,40524.0,40521.0,0.00078048]
[1645182525592,0.16949562,40522.0,40521.0,0.00078048]
[1645182525891,0.16949562,40522.0,40519.0,0.00027177]
[1645182525892,0.85894562,40522.0,40519.0,0.00027177]
[1645182526094,0.78945,40522.0,40521.0,0.00323]
[1645182526290,0.78945,40522.0,40521.0,0.336439]
[1645182526492,0.78945,40522.0,40521.0,0.86451653]
[1645182526692,0.78945,40522.0,40521.0,0.87535999]
[1645182526890,0.78945,40522.0,40521.0,0.57508822]
[1645182527096,0.74035,40522.0,40521.0,0.57508822]
[1645182527359,0.74035,40522.0,40517.0,0.0052413]
[1645182527360,0.333217,40521.0,40517.0,0.0052413]
[1645182527554,0.333217,40521.0,40513.0,0.00315955]
[1645182527555,0.7,40518.0,40513.0,0.00315955]
[1645182527752,0.7,40518.0,40515.0,0.333217]
[1645182527753,0.061759,40517.0,40515.0,0.333217]
[1645182527950,0.061759,40517.0,40513.0,0.00315955]
[1645182527951,0.382317,40516.0,40513.0,0.00315955]
[1645182528154,0.06949562,40515.0,40513.0,0.00315955]
[1645182528350,0.54010262,40515.0,40514.0,0.00205976]
[1645182528950,0.48296122,40515.0,40514.0,0.00205976]
[1645182529150,0.14974422,40515.0,40514.0,0.00205976]
[1645182529351,0.14974422,40515.0,40512.0,0.005]
[1645182529352,0.456738,40514.0,40512.0,0.005]
[1645182529553,0.456738,40514.0,40507.0,0.002]
[1645182529554,0.0491,40513.0,40507.0,0.002]
[1645182529759,0.333217,40512.0,40507.0,0.002]
[1645182529952,0.0491,40511.0,40508.0,0.0011]
[1645182530150,0.0491,40511.0,40507.0,0.002]
[1645182530151,0.394988,40509.0,40507.0,0.0001]
[1645182530350,0.22842608,40508.0,40507.0,0.00333]
[1645182530551,0.56164308,40508.0,40507.0,0.00333]
[1645182530750,0.333217,40508.0,40507.0,0.0001]
[1645182531190,0.06135499,40509.0,40507.0,0.0001]
[1645182531591,0.06135499,40509.0,40508.0,0.24977244]
[1645182531790,0.06135499,40509.0,40507.0,0.0001]
[1645182531990,0.333217,40508.0,40507.0,0.0001]
[1645182532191,0.39457199,40509.0,40507.0,0.0001]
[1645182533392,0.39457199,40509.0,40508.0,0.00011321]
[1645182534847,0.46406761,40509.0,40508.0,0.00011321]
[1645182535045,0.39457199,40509.0,40508.0,0.00011321]
[1645182536545,0.333217,40509.0,40508.0,0.00334321]
[1645182536745,0.06176,40512.0,40508.0,0.00011321]
[1645182537044,0.333217,40511.0,40509.0,0.00323]
[1645182537243,0.333217,40511.0,40510.0,0.24544463]
[1645182537445,0.333217,40511.0,40509.0,0.00323]
[1645182537649,0.333217,40511.0,40508.0,0.00011321]
[1645182537845,0.00241629,40509.0,40508.0,0.00011321]
[1645182538055,0.285281,40518.0,40508.0,0.00011321]
[1645182538056,0.185266,40520.0,40510.0,1.25]
[1645182538249,0.185266,40520.0,40519.0,0.00323]
[1645182538250,0.061757,40520.0,40519.0,0.00323]
[1645182538451,0.74038,40520.0,40518.0,0.2575257]
[1645182538892,0.74038,40520.0,40519.0,0.333217]
[1645182539093,0.74038,40520.0,40518.0,0.2575257]
[1645182539293,0.74038,40520.0,40519.0,0.00323]
[1645182539494,0.74038,40520.0,40518.0,0.2607557]
[1645182539697,0.74038,40520.0,40519.0,0.00323]
[1645182540098,0.74038,40520.0,40518.0,0.2575257]
[1645182540300,0.74038,40520.0,40518.0,0.2607557]
[1645182540495,0.74038,40520.0,40514.0,0.00323]
[1645182541497,0.7,40518.0,40514.0,0.00323]
[1645182542095,0.7,40518.0,40511.0,0.00039845]
[1645182542552,0.7,40518.0,40516.0,0.00323]
[1645182542954,0.7,40518.0,40515.0,0.00027064]
[1645182543151,0.7,40518.0,40517.0,0.00323]
[1645182543552,0.80479569,40520.0,40517.0,0.00350064]
[1645182543753,0.80479569,40520.0,40517.0,0.00027064]
[1645182544053,0.80479569,40520.0,40517.0,0.00323]
[1645182544054,0.74304622,40520.0,40517.0,0.00323]
[1645182544253,0.74304622,40520.0,40517.0,0.00350064]
[1645182544653,0.80479422,40520.0,40517.0,0.00350064]
[1645182544854,0.74304622,40520.0,40517.0,0.00350064]
[1645182545558,0.74304622,40520.0,40517.0,0.26857005]
[1645182546392,0.74304622,40520.0,40511.0,0.00036334]
[1645182546393,0.333217,40519.0,40511.0,0.00036334]
[1645182546594,1.033217,40512.0,40511.0,0.00036334]
[1645182546794,1.033217,40512.0,40506.0,0.00355355]
[1645182546795,9.48e-05,40508.0,40506.0,0.00355355]